bitfinex/quotes_SOLUSD_20251127
["timestamp","ask_amount","ask_price","bid_price","bid_amount"]
[1764282249192,14.65166407,141.91,141.88,0.7]
[1764282249697,11.02757848,141.91,141.88,0.7]
[1764282249909,14.65166407,141.91,141.88,0.7]
[1764282251717,11.02757848,141.91,141.88,0.7]
[1764282260121,11.02757848,141.91,141.88,0.68]
[1764282260325,14.65166407,141.91,141.88,0.68]
[1764282262635,11.02757848,141.91,141.88,0.68]
[1764282263405,32.26846344,141.91,141.88,0.68]
[1764282265513,12.43403051,141.9,141.88,0.68]
[1764282265719,0.88096412,141.89,141.88,0.68]
[1764282267618,7.92867713,141.89,141.88,0.68]
[1764282268312,7.92867713,141.89,141.87,0.68]
[1764282268513,3.1,141.88,141.87,0.68]
[1764282276057,7.92867713,141.89,141.87,0.68]
[1764282276213,3.1,141.88,141.87,0.68]
[1764282278337,2.38,141.88,141.87,10.04591158]
[1764282289422,2.38,141.88,141.87,7.72870656]
[1764282290541,2.38,141.88,141.87,10.04591158]
[1764282295545,2.38,141.88,141.87,7.72870656]
[1764282295752,2.38,141.88,141.87,10.04591158]
[1764282300553,8.62761777,141.91,141.87,10.04591158]
[1764282300760,3.1,141.89,141.88,0.68]
[1764282301061,3.1,141.89,141.87,10.04591158]
[1764282301758,3.1,141.89,141.87,9.36591158]
[1764282301960,3.1,141.89,141.88,0.68]
[1764282310550,3.1,141.89,141.87,16.39632433]
[1764282310752,3.1,141.89,141.88,0.72]
[1764282312455,3.1,141.89,141.88,3.03720502]
[1764282312965,3.1,141.89,141.88,18.71352935]
[1764282315744,3.1,141.89,141.88,25.7617391]
[1764282316070,3.1,141.89,141.88,10.08541477]
[1764282317568,0.7,141.96,141.88,12.40261979]
[1764282317783,3.8,141.95,141.92,2.31720502]
[1764282317951,3.8,141.95,141.93,0.7]
[1764282318273,3.8,141.95,141.92,2.31720502]
[1764282318452,3.8,141.95,141.94,16.308864]
[1764282319986,3.1,141.95,141.94,16.308864]
[1764282321559,3.8,141.95,141.94,16.308864]
[1764282324184,3.8,141.95,141.92,7.04618384]
[1764282324471,3.8,141.95,141.93,0.7]
[1764282324689,3.8,141.95,141.94,8.80994492]
[1764282326761,3.1,141.95,141.94,9.50994492]
[1764282330275,3.1,141.95,141.94,8.80994492]
[1764282331581,3.8,141.95,141.94,8.80994492]
[1764282332282,3.1,141.95,141.94,8.80994492]
[1764282333861,3.8,141.95,141.94,8.80994492]
[1764282334075,3.1,141.95,141.94,8.80994492]
[1764282334254,3.8,141.95,141.94,8.80994492]
[1764282334460,3.1,141.95,141.94,8.80994492]
[1764282334659,3.8,141.95,141.94,8.80994492]
[1764282335376,3.1,141.95,141.94,8.80994492]
[1764282336109,3.1,141.95,141.94,20.17118385]
[1764282336273,0.7,141.98,141.94,37.78425979]
[1764282336469,0.7,141.98,141.96,3.61600856]
[1764282336674,3.1,141.97,141.96,3.61600856]
[1764282336868,3.1,141.97,141.96,11.36024637]
[1764282337188,3.1,141.97,141.96,14.46024637]
[1764282337594,3.1,141.97,141.96,3.1]
[1764282337799,3.8,141.97,141.94,7.04512207]
[1764282338087,0.7,141.96,141.94,7.04512207]
[1764282338599,0.7,141.96,141.92,16.308864]
[1764282338766,0.7,141.96,141.94,3.61600856]
[1764282342281,7.74433577,141.96,141.94,3.61600856]
[1764282344880,0.66,141.95,141.94,3.61600856]
[1764282345920,7.04433577,141.96,141.94,3.61600856]
[1764282346086,0.66,141.95,141.94,3.61600856]
[1764282352481,7.04433577,141.96,141.94,3.61600856]
[1764282352679,7.70433577,141.96,141.94,3.61600856]
[1764282353613,0.66,141.95,141.94,3.61600856]
[1764282355312,7.70473406,141.95,141.91,4.33600856]
[1764282355487,3.1,141.94,141.91,0.72]
[1764282355813,10.80552173,141.94,141.92,7.04433577]
[1764282356394,10.80552173,141.94,141.92,7.76433577]
[1764282361712,10.14552173,141.94,141.92,7.76433577]
[1764282362391,10.80552173,141.94,141.92,7.76433577]
[1764282362798,10.80552173,141.94,141.92,0.72]
[1764282364622,10.14552173,141.94,141.92,0.72]
[1764282365433,10.80552173,141.94,141.92,0.72]
[1764282365822,10.14552173,141.94,141.89,21.16775445]
[1764282366017,10.80552173,141.94,141.91,0.72]
[1764282367321,0.66,141.93,141.91,0.72]
[1764282368523,10.14552173,141.94,141.91,0.72]
[1764282368698,10.80552173,141.94,141.91,0.72]
[1764282369099,3.76,141.94,141.91,0.72]
[1764282369312,4.64065379,141.94,141.91,0.72]
[1764282369526,10.80537756,141.94,141.91,4.33600856]
[1764282370719,10.80537756,141.94,141.91,0.72]
[1764282374414,0.66,141.93,141.91,0.72]
[1764282374612,3.1,141.94,141.92,3.61600856]
[1764282374815,3.1,141.94,141.93,3.61600856]
[1764282375337,3.1,141.94,141.93,4.28600856]
[1764282375632,3.1,141.94,141.93,11.33173532]
[1764282377227,3.1,141.94,141.93,19.03566153]
[1764282380419,3.1,141.97,141.93,36.64997844]
[1764282380609,3.1,141.97,141.94,4.28600856]
[1764282380808,3.1,141.97,141.95,3.61600856]
[1764282381008,3.1,141.97,141.95,4.28600856]
[1764282381208,3.1,141.97,141.96,0.67]
[1764282381512,3.1,141.97,141.95,7.0445489]
[1764282381712,3.1,141.97,141.95,7.7145489]
[1764282381915,3.1,141.97,141.96,0.67]
[1764282383817,3.1,141.97,141.96,7.71423781]
[1764282385338,3.1,141.97,141.96,11.33024637]
[1764282386010,3.1,141.97,141.96,19.25229655]
[1764282387434,3.1,141.97,141.96,14.96628799]
[1764282387635,3.1,141.97,141.94,16.308864]
[1764282387813,3.76,141.97,141.95,0.67]
[1764282389138,3.76,141.97,141.95,7.71434269]
[1764282390714,3.1,141.97,141.95,9.3579852]
[1764282390915,3.1,141.97,141.96,2.98364251]
[1764282391542,0.2,141.99,141.96,2.98364251]
[1764282391716,0.2,141.99,141.98,2.31364251]
[1764282392238,0.2,141.99,141.98,2.98364251]
[1764282392821,0.2,141.99,141.98,10.02688803]
[1764282393233,0.2,141.99,141.98,7.71324552]
[1764282399447,0.86,141.99,141.97,2.82097394]
[1764282399620,0.86,141.99,141.95,7.71444033]
[1764282399621,3.17364251,141.99,141.95,7.71444033]
[1764282399821,0.66,141.98,141.95,7.71444033]
[1764282400456,0.66,141.98,141.95,7.04444033]
[1764282400824,0.66,141.98,141.95,7.69444033]
[1764282401159,0.66,141.98,141.95,7.04444033]
[1764282402141,7.70334207,141.98,141.94,7.69501981]
[1764282402538,0.66,141.97,141.94,7.69501981]
[1764282405235,3.76,141.97,141.94,7.69501981]
[1764282406063,3.76,141.97,141.94,7.04501981]
[1764282406270,3.76,141.97,141.95,7.69468987]
[1764282409879,3.76,141.97,141.95,0.65]
[1764282431092,3.76,141.97,141.95,7.69472519]
[1764282441700,3.1,141.97,141.95,7.04472519]
[1764282441910,3.1,141.97,141.96,0.69]
[1764282442091,3.81,141.97,141.95,7.73472519]
[1764282449206,3.81,141.97,141.95,0.69]
[1764282449591,3.81,141.97,141.95,7.73461815]
[1764282454319,3.1,141.97,141.95,7.73461815]
[1764282454493,3.1,141.97,141.96,7.73423781]
[1764282454918,3.1,141.97,141.96,11.34994329]
[1764282455125,0.2,141.99,141.96,28.96053782]
[1764282455418,0.2,141.99,141.97,4.30570548]
[1764282455916,0.2,141.99,141.98,0.69]
[1764282456511,0.2,141.99,141.98,11.348951]
[1764282457221,0.2,141.99,141.98,7.73324552]
[1764282462123,0.2,141.99,141.98,11.348951]
[1764282466723,0.2,141.99,141.98,14.448951]
[1764282467924,0.2,141.99,141.98,30.757815]
[1764282491063,3.3,142.04,142.01,16.308864]
[1764282491269,3.3,142.04,142.03,3.61570548]
[1764282491447,3.97,142.04,142.03,3.61570548]
[1764282491961,0.87,142.04,142.03,18.04705258]
[1764282492970,0.87,142.04,142.03,25.08781861]
[1764282495071,0.87,142.04,142.03,21.47211313]
[1764282498559,0.87,142.04,142.02,7.04109298]
[1764282498871,0.7,142.03,142.02,20.80244008]
[1764282510769,0.7,142.03,142.02,20.70244008]
[1764282512572,0.9,142.04,142.02,20.70244008]
[1764282513080,0.9,142.04,142.02,6.94109298]
[1764282513280,0.7,142.03,142.02,20.70244008]
[1764282519780,0.2,142.04,142.02,20.70244008]
[1764282519990,0.7,142.03,142.02,20.70244008]
[1764282520192,0.7,142.03,142.02,6.94109298]
[1764282520487,0.7,142.03,142.02,9.76107253]
[1764282522791,0.7,142.03,142.02,12.07238671]
[1764282524201,0.2,142.04,142.02,12.73238671]
[1764282524488,0.2,142.04,142.03,2.97131418]
[1764282524990,0.2,142.04,142.03,5.79109494]
[1764282526180,0.2,142.04,142.03,12.83186097]
[1764282535492,0.2,142.04,142.03,12.17186097]
[1764282535493,1e-08,142.04,142.03,12.17186097]
[1764282535690,1e-08,142.04,142.03,12.83186097]
[1764282536802,0.70000001,142.04,142.03,9.86054679]
[1764282537004,0.70000001,142.04,142.03,7.04076603]
[1764282544221,0.70000001,142.04,142.02,9.8610212]
[1764282547625,0.70000001,142.04,141.99,16.308864]
[1764282547626,10.05160034,142.04,141.99,16.308864]
[1764282547796,2.31131418,142.03,141.99,16.308864]
[1764282548000,2.31131418,142.02,141.99,16.308864]
[1764282548208,3.01131418,142.02,141.99,16.308864]
[1764282548409,0.7,142.01,141.99,16.308864]
[1764282548828,0.7,142.01,141.99,23.35146271]
[1764282551939,3.77,142.02,141.99,24.01146271]
[1764282552127,0.67,142.01,141.99,24.01146271]
[1764282552326,3.1,142.02,142.0,2.97131418]
[1764282552836,3.1,142.02,142.01,2.97131418]
[1764282553857,0.67,142.03,142.01,6.07131418]
[1764282554329,0.67,142.03,142.01,10.80162227]
[1764282555525,0.67,142.03,142.01,7.70162227]
[1764282560148,0.67,142.03,142.01,7.04162227]
[1764282560442,0.67,142.03,142.0,17.38229531]
[1764282563647,0.67,142.03,141.99,23.35145323]
[1764282563648,10.02217385,142.03,141.99,23.35145323]
[1764282563858,10.02217385,142.03,141.99,32.70312637]
[1764282564031,9.35217385,142.03,141.99,32.70312637]
[1764282564349,0.67,142.02,141.99,32.70312637]
[1764282565148,0.67,142.02,141.99,33.36312637]
[1764282567437,0.67,142.02,141.99,35.67444055]
[1764282568887,0.67,142.02,142.0,2.31131418]
[1764282570339,0.67,142.02,141.99,16.308864]
[1764282570656,3.1,142.01,141.99,16.308864]
[1764282570852,3.1,142.01,141.98,13.0294977]
[1764282571055,0.67,142.0,141.98,13.03185748]
[1764282571838,0.67,142.0,141.99,2.31131418]
[1764282572544,0.67,142.0,141.99,3.61326542]
[1764282573054,3.77,142.01,141.99,10.65598846]
[1764282573239,3.1,142.01,142.0,3.61326542]
[1764282573439,3.77,142.01,142.0,3.61326542]
[1764282573655,3.77,142.01,142.0,4.27326542]
[1764282573656,3.1,142.01,142.0,4.27326542]
[1764282574070,3.1,142.01,142.0,14.99189867]
[1764282574264,0.67,142.03,142.0,14.99189867]
[1764282574466,0.67,142.03,142.02,3.61326542]
[1764282576565,0.67,142.03,142.02,10.65452721]
[1764282586680,3.81000001,142.04,142.02,10.65452721]
[1764282586978,3.10000001,142.04,142.03,3.61326542]
[1764282587376,3.10000001,142.04,142.03,14.97729687]
[1764282587678,1e-08,142.04,142.03,18.60337758]
[1764282588078,1e-08,142.04,142.03,38.525507]
[1764282590385,1e-08,142.04,142.03,34.91224158]
[1764282591076,1e-08,142.04,142.03,38.525507]
[1764282598665,1e-08,142.04,142.03,34.91224158]
[1764282599991,1e-08,142.04,142.03,38.525507]
[1764282601701,0.2,142.06,142.05,16.308864]
[1764282601872,0.2,142.09,142.07,16.308864]
[1764282602193,0.2,142.09,142.08,3.61326542]
[1764282602373,0.2,142.09,142.08,23.45091663]
[1764282602774,0.2,142.09,142.08,30.48920491]
[1764282604098,0.2,142.09,142.08,27.6704177]
[1764282617201,0.2,142.09,142.08,26.9604177]
[1764282617392,0.86,142.09,142.08,26.9604177]
[1764282618105,0.2,142.09,142.08,26.9604177]
[1764282619489,0.86,142.09,142.08,26.9604177]
[1764282620384,0.2,142.09,142.08,26.9604177]
[1764282627011,0.2,142.09,142.08,27.6304177]
[1764282627212,0.2,142.09,142.08,31.24368312]
[1764282632223,0.2,142.1,142.08,31.24368312]
[1764282632512,0.2,142.1,142.09,2.97776321]
[1764282632698,0.2,142.1,142.09,12.20881605]
[1764282634098,0.2,142.1,142.09,19.24660899]
[1764282636725,0.2,142.12,142.11,16.308864]
[1764282636934,0.2,142.12,142.11,18.61662721]
[1764282638416,0.2,142.12,142.11,25.65342968]
[1764282638634,0.86,142.12,142.11,25.65342968]
[1764282656740,0.2,142.12,142.11,26.34342968]
[1764282657140,0.2,142.12,142.11,25.65342968]
[1764282658035,0.2,142.12,142.11,26.34342968]
[1764282659945,13.36409134,142.12,142.05,3.67547664]
[1764282660118,2.30776321,142.09,142.04,2.30776321]
[1764282660519,0.62,142.08,142.04,2.30776321]
[1764282660845,0.62,142.08,142.03,10.0383893]
[1764282661149,9.96615017,142.08,142.03,10.0383893]
[1764282661522,0.62,142.07,142.03,10.0383893]
[1764282661727,0.62,142.07,142.03,9.3483893]
[1764282662624,9.96656131,142.07,142.02,13.02581838]
[1764282662835,13.06656131,142.07,142.02,13.02581838]
[1764282663040,0.62,142.06,142.02,13.02581838]
[1764282663460,0.62,142.06,142.02,13.71581838]
[1764282663656,0.62,142.06,142.02,13.02581838]
[1764282665758,9.34753793,142.05,142.02,3.67698346]
[1764282665954,7.03977472,142.05,142.0,2.30776321]
[1764282666154,0.62,142.04,142.0,2.30776321]
[1764282667867,7.66038532,142.04,142.0,2.30776321]
[1764282668059,7.66038532,142.04,142.0,2.99776321]
[1764282668260,0.62,142.03,142.0,2.99776321]
[1764282669647,0.62,142.03,141.99,23.35156076]
[1764282669852,0.62,142.03,142.0,0.69]
[1764282670575,3.72,142.03,142.0,0.69]
[1764282671077,0.62,142.02,141.99,16.308864]
[1764282671276,0.62,142.02,141.99,18.61662721]
[1764282671481,0.62,142.02,141.99,19.29662721]
[1764282672385,0.62,142.02,141.99,18.61662721]
[1764282672559,2.92776321,142.02,141.98,3.67836421]
[1764282672874,7.66175762,142.01,141.98,3.67836421]
[1764282673252,0.62,142.0,141.98,3.67836421]
[1764282673579,0.62,142.0,141.97,0.68]
[1764282673875,0.62,142.0,141.97,2.98776321]
[1764282675952,0.62,142.0,141.98,2.30776321]
[1764282681375,7.66228139,142.0,141.98,2.30776321]
[1764282681688,7.66228139,142.0,141.97,2.98776321]
[1764282685386,7.66228139,142.0,141.98,2.30776321]
[1764282686584,7.66228139,142.0,141.97,0.68]
[1764282686585,7.66228139,142.0,141.97,2.98776321]
[1764282688961,7.66228139,142.0,141.97,0.68]
[1764282689562,7.66228139,142.0,141.97,2.98776321]
[1764282690969,4.60034368,141.99,141.96,0.1]
[1764282691587,0.62,141.98,141.96,0.1]
[1764282692689,7.66344454,141.98,141.96,0.1]
[1764282693297,0.62,141.97,141.96,0.1]
[1764282695395,7.66344454,141.98,141.96,0.1]
[1764282697492,0.62,141.97,141.96,0.1]
[1764282698480,7.66374163,141.97,141.96,0.1]
[1764282698671,8.54420933,141.97,141.96,0.1]
[1764282698993,7.92420933,141.97,141.96,0.1]
[1764282699598,8.54420933,141.97,141.96,0.1]
[1764282709599,7.92420933,141.97,141.96,0.1]
[1764282717108,8.54420933,141.97,141.96,0.1]
[1764282718015,12.15963471,141.97,141.96,0.1]
[1764282718187,8.54420933,141.97,141.96,0.1]
[1764282720689,7.92420933,141.97,141.96,0.1]
[1764282720893,7.92374837,141.98,141.96,0.81]
[1764282729705,11.53917375,141.98,141.96,0.1]
[1764282729907,4.23542538,141.97,141.96,0.1]
[1764282730519,24.95043429,141.97,141.96,0.1]
[1764282730727,21.33500891,141.97,141.96,0.1]
[1764282731426,24.95043429,141.97,141.96,0.1]
[1764282732106,31.99417592,141.97,141.96,0.1]
[1764282732829,31.37417592,141.97,141.96,0.1]
[1764282733326,31.99417592,141.97,141.96,0.1]
[1764282734519,27.75875054,141.97,141.96,0.1]
[1764282736926,20.71500891,141.97,141.96,0.81]
[1764282737226,3.1,141.97,141.96,0.81]
[1764282739932,10.14374163,141.97,141.96,0.81]
[1764282741026,10.14374163,141.97,141.96,0.1]
[1764282741720,10.14374163,141.97,141.96,0.79]
[1764282744316,10.14374163,141.97,141.96,0.1]
[1764282744521,10.14374163,141.97,141.96,0.79]
[1764282744721,10.14374163,141.97,141.96,0.1]
[1764282745226,10.14374163,141.97,141.96,0.79]
[1764282752551,3.1,141.97,141.96,0.79]
[1764282755043,7.92501948,141.99,141.96,10.14797196]
[1764282755246,7.92047123,142.04,141.98,2.31373415]
[1764282755444,3.1,142.03,141.99,2.31373415]
[1764282755647,3.1,142.03,142.0,2.31373415]
[1764282755824,3.1,142.03,142.01,0.69]
[1764282758938,3.1,142.03,142.01,3.00373415]
[1764282759137,3.1,142.03,142.02,0.69]
[1764282773563,10.76076603,142.03,141.99,2.98373415]
[1764282773865,0.88015772,142.02,142.0,0.67]
[1764282774083,0.88015772,142.02,141.98,7.82033644]
[1764282774084,8.80994492,142.01,141.98,7.82033644]
[1764282774237,32.1615584,141.99,141.96,0.1]
[1764282774441,2.31373415,141.98,141.96,0.1]
[1764282774762,14.22367907,141.97,141.96,0.1]
[1764282774970,11.12367907,141.95,141.94,0.1]
[1764282775144,11.54367907,141.95,141.94,0.1]
[1764282775359,9.22994492,141.95,141.94,0.1]
[1764282775559,14.36684313,141.95,141.94,0.1]
[1764282776077,14.36684313,141.95,141.85,8.59033644]
[1764282776275,14.36684313,141.95,141.78,0.1]
[1764282776276,31.96994491,141.82,141.78,0.1]
[1764282776491,11.12367907,141.79,141.78,0.1]
[1764282776785,11.92994492,141.79,141.78,0.1]
[1764282776952,5.9459564,141.79,141.78,0.1]
[1764282778780,5.9459564,141.79,141.78,0.77]
[1764282780279,3.12,141.79,141.78,0.77]
[1764282780486,10.17408887,141.79,141.78,0.77]
[1764282780989,3.12,141.79,141.78,0.77]
[1764282782569,3.12,141.79,141.78,3.08373415]
[1764282782974,3.12,141.79,141.78,0.77]
[1764282784085,3.12,141.79,141.78,3.08373415]
[1764282784265,3.12,141.79,141.78,0.77]
[1764282785483,3.12,141.79,141.78,3.08373415]
[1764282785878,3.12,141.79,141.78,0.77]
[1764282799903,3.12,141.79,141.78,10.13691513]
[1764282800206,4.00139895,141.82,141.78,10.13691513]
[1764282800378,4.00139895,141.82,141.79,0.65]
[1764282804302,4.00139895,141.82,141.79,7.70263666]
[1764282804508,4.00139895,141.82,141.8,0.65]
[1764282805091,3.12,141.82,141.8,0.65]
[1764282806184,3.12,141.82,141.81,7.05168887]
[1764282806506,3.12,141.82,141.81,9.36542302]
[1764282806706,3.12,141.82,141.81,10.01542302]
[1764282808605,8.63627896,141.85,141.81,10.01542302]
[1764282808807,8.63627896,141.85,141.82,0.65]
[1764282810886,8.63627896,141.85,141.82,2.96373415]
[1764282811194,8.63627896,141.85,141.82,0.65]
[1764282813319,4.63506642,141.84,141.82,0.65]
[1764282814516,4.63506642,141.83,141.82,0.65]
[1764282815210,4.63506642,141.84,141.82,0.65]
[1764282815515,4.63506642,141.83,141.82,0.65]
[1764282828503,4.63506642,141.83,141.82,11.32302723]
[1764282828898,3.12,141.85,141.82,11.32302723]
[1764282829120,4.72672815,141.84,141.83,0.71]
[1764282829325,3.12,141.85,141.83,7.76069449]
[1764282829720,3.12,141.85,141.84,0.71]
[1764282829908,7.8457633,141.85,141.84,0.71]
[1764282830301,7.8457633,141.85,141.84,4.33183558]
[1764282830302,3.12,141.85,141.84,4.33183558]
[1764282831410,3.12,141.85,141.84,11.38203298]
[1764282832808,4.72679114,141.87,141.84,11.38203298]
[1764282833009,4.72679114,141.87,141.85,4.33183558]
[1764282833511,4.72679114,141.87,141.85,0.71]
[1764282833730,4.72679114,141.87,141.85,4.33183558]
[1764282833912,4.72679114,141.87,141.86,3.62183558]
[1764282834311,4.00102621,141.88,141.86,3.62183558]
[1764282834610,4.00102621,141.88,141.85,4.33183558]
[1764282836138,4.00102621,141.88,141.86,0.71]
[1764282836435,8.72263029,141.88,141.86,0.71]
[1764282836934,8.72263029,141.88,141.86,4.33183558]
[1764282837334,15.77084213,141.88,141.86,3.62183558]
[1764282837514,11.04923805,141.88,141.86,3.62183558]
[1764282838436,0.32,141.87,141.83,7.05049681]
[1764282838614,4.72079295,141.87,141.84,4.33183558]
[1764282838815,4.72079295,141.87,141.86,3.62183558]
[1764282839030,4.72079295,141.87,141.85,4.33183558]
[1764282840932,10.40115043,141.86,141.83,3.62183558]
[1764282841134,3.12,141.85,141.83,3.62183558]
[1764282841541,3.12,141.85,141.84,3.62183558]
[1764282842333,3.12,141.85,141.84,4.33183558]
[1764282845040,3.12,141.85,141.84,11.38203298]
[1764282845239,11.92994492,141.85,141.78,0.1]
[1764282845548,8.66482636,141.84,141.8,0.71]
[1764282845839,5.04299078,141.84,141.8,0.71]
[1764282846041,12.09334243,141.84,141.8,4.33183558]
[1764282846217,3.62183558,141.83,141.8,11.38399744]
[1764282846419,3.12,141.82,141.8,11.38399744]
[1764282848032,3.12,141.82,141.8,7.76216186]
[1764282849029,5.04611645,141.81,141.78,0.1]
[1764282849233,4.72611645,141.8,141.78,0.81]
[1764282849432,3.12,141.79,141.78,0.81]
[1764282852240,3.12,141.79,141.78,0.1]
[1764282852447,8.16139694,141.79,141.78,0.1]
[1764282852647,10.6669541,141.79,141.78,0.1]
[1764282852948,5.94555716,141.79,141.78,0.1]
[1764282853451,12.9982407,141.79,141.78,0.1]
[1764282858158,13.87982614,141.79,141.78,0.1]
[1764282859147,12.9982407,141.79,141.78,0.1]
[1764282865542,13.3182407,141.79,141.78,0.1]
[1764282866250,12.9982407,141.79,141.78,0.1]
[1764282874068,5.94555716,141.79,141.78,0.1]
[1764282874279,5.94555716,141.79,141.78,0.8]
[1764282875377,12.9982407,141.79,141.78,0.8]
[1764282876781,12.9982407,141.79,141.78,0.1]
[1764282877273,12.9982407,141.79,141.78,0.8]
[1764282882460,12.9982407,141.79,141.78,0.1]
[1764282882676,12.9982407,141.79,141.78,0.79]
[1764282883770,12.9982407,141.79,141.78,0.1]
[1764282883967,5.94555716,141.79,141.78,0.79]
[1764282885189,12.9982407,141.79,141.78,0.79]
[1764282886269,17.71687223,141.79,141.78,0.79]
[1764282887191,10.17268354,141.79,141.78,0.79]
[1764282888072,10.17268354,141.79,141.78,3.10985514]
[1764282889194,14.89759056,141.79,141.78,3.10985514]
[1764282898503,14.89759056,141.79,141.78,0.79]
[1764282898702,14.89759056,141.79,141.78,3.10985514]
[1764282901114,14.89759056,141.79,141.78,0.79]
[1764282902406,7.84490702,141.79,141.78,0.79]
[1764282902607,10.17268354,141.79,141.78,0.79]
[1764282902797,14.91630942,141.79,141.78,0.79]
[1764282903218,24.11630942,141.79,141.78,0.79]
[1764282906321,31.17086872,141.79,141.78,0.79]
[1764282908119,24.11818518,141.79,141.78,0.79]
[1764282908304,17.06362588,141.79,141.78,0.79]
[1764282914252,8.92994492,141.78,141.74,0.1]
[1764282914409,11.12980006,141.76,141.74,0.1]
[1764282914725,7.86362588,141.75,141.74,0.1]
[1764282914899,15.0382996,141.75,141.74,0.1]
[1764282915314,8.80994492,141.74,141.69,0.68]
[1764282915498,8.80994492,141.72,141.69,2.99985514]
[1764282915699,7.86362588,141.71,141.69,2.99985514]
[1764282915926,3.12,141.71,141.7,0.68]
[1764282916123,16.66634463,141.71,141.7,0.68]
[1764282916331,11.92994492,141.71,141.7,0.68]
[1764282917119,18.98660994,141.71,141.7,0.68]
[1764282928830,8.80994492,141.67,141.65,0.1]
[1764282929034,7.05716302,141.7,141.65,2.41985514]
[1764282929035,3.12,141.66,141.65,2.41985514]
[1764282929754,3.12,141.66,141.65,3.08985514]
[1764282936133,3.12,141.66,141.65,0.77]
[1764282936451,3.12,141.66,141.65,2.58985514]
[1764282936651,3.12,141.66,141.65,3.89995215]
[1764282938955,3.12,141.66,141.65,0.27]
[1764282939152,3.12,141.66,141.65,3.89995215]
[1764282940563,11.06045561,141.68,141.65,3.89995215]
[1764282940769,11.06045561,141.68,141.67,3.62995215]
[1764282941268,11.06045561,141.68,141.67,4.31995215]
[1764282942838,3.12,141.68,141.67,4.31995215]
[1764282944569,11.0594001,141.7,141.67,4.31995215]
[1764282944754,11.0594001,141.7,141.69,3.62995215]
[1764282946554,11.0594001,141.7,141.69,4.31995215]
[1764282946872,4.00214537,141.7,141.69,4.31995215]
[1764282948750,4.00214537,141.7,141.69,3.62995215]
[1764282949446,4.00214537,141.7,141.68,0.69]
[1764282949643,4.00214537,141.7,141.69,3.62995215]
[1764282950275,4.00214537,141.7,141.69,0.69]
[1764282950461,4.00214537,141.7,141.69,4.31995215]
[1764282951660,4.00214537,141.7,141.69,3.62995215]
[1764282953445,3.12,141.7,141.69,4.31995215]
[1764282953768,3.12,141.72,141.69,11.37761324]
[1764282953947,3.12,141.72,141.71,3.62995215]
[1764282954143,12.32,141.72,141.71,3.62995215]
[1764282954342,12.32,141.72,141.71,4.31995215]
[1764282954744,3.12,141.72,141.71,11.37661717]
[1764282955758,3.12,141.74,141.71,11.37661717]
[1764282955961,3.12,141.74,141.73,3.62995215]
[1764282956475,3.12,141.74,141.73,4.31995215]
[1764282957548,8.80994492,141.73,141.7,16.38432957]
[1764282957869,0.88202088,141.72,141.68,0.69]
[1764282958168,3.12,141.71,141.68,0.69]
[1764282959056,9.32994492,141.7,141.64,9.59994492]
[1764282959373,4.73068537,141.69,141.64,0.79]
[1764282959548,8.80994492,141.67,141.64,0.79]
[1764282959851,15.86869332,141.67,141.64,0.79]
[1764282960573,7.06112329,141.66,141.64,0.79]
[1764282960781,7.06112329,141.66,141.64,4.41995215]
[1764282961149,7.06112329,141.66,141.64,3.72995215]
[1764282961470,7.06112329,141.66,141.65,0.69]
[1764282962548,3.12,141.68,141.65,0.69]
[1764282963054,12.44994492,141.68,141.65,0.69]
[1764282963263,12.44994492,141.68,141.65,4.31995215]
[1764282964354,9.2,141.67,141.65,0.69]
[1764282965662,25.608864,141.67,141.65,0.69]